bitfinex/quotes_SOLUSD_20220227
["timestamp","ask_amount","ask_price","bid_price","bid_amount"]
[1646006201926,6.0,85.712,85.648,2.46289189]
[1646006204629,117.2,85.711,85.648,2.46289189]
[1646006204829,117.2,85.709,85.616,2.89522166]
[1646006205132,117.2,85.707,85.617,3.0816862]
[1646006205329,12.03089,85.705,85.618,55.95894665]
[1646006205531,29.3938,85.704,85.619,2.77923059]
[1646006206133,117.2,85.703,85.619,2.77923059]
[1646006206333,117.2,85.701,85.619,2.77923059]
[1646006206534,117.2,85.699,85.619,2.77923059]
[1646006206734,117.2,85.697,85.619,2.77923059]
[1646006206932,6.0,85.696,85.619,2.77923059]
[1646006207532,6.0,85.703,85.619,2.77923059]
[1646006207736,117.2,85.702,85.619,2.77923059]
[1646006208034,6.0,85.703,85.619,2.77923059]
[1646006208035,117.2,85.7,85.619,2.77923059]
[1646006208253,117.2,85.698,85.619,2.77923059]
[1646006208452,117.2,85.696,85.619,2.77923059]
[1646006208654,6.0,85.695,85.619,2.77923059]
[1646006209054,1.86500818,85.693,85.619,2.77923059]
[1646006209253,5.297193,85.688,85.572,7.58907605]
[1646006209455,58.38,85.686,85.572,31.26057605]
[1646006209655,117.2,85.679,85.573,2.59228882]
[1646006209954,14.05,85.67,85.574,60.00518507]
[1646006210160,6.0,85.669,85.575,2.4259057]
[1646006210555,52.7342402,85.678,85.575,2.4259057]
[1646006210556,23.1882,85.668,85.576,13.04601712]
[1646006210756,23.1882,85.668,85.576,60.05260203]
[1646006210956,23.1882,85.668,85.577,49.55491776]
[1646006211157,23.1882,85.668,85.578,12.93643195]
[1646006211359,23.1882,85.668,85.578,59.94301686]
[1646006212062,6.0,85.667,85.579,49.27217566]
[1646006212215,23.1882,85.668,85.58,8.71023776]
[1646006212275,6.0,85.667,85.58,37.77088927]
[1646006212279,6.0,85.667,85.581,31.59932092]
[1646006212357,6.0,85.667,85.582,8.52159446]
[1646006212660,6.0,85.667,85.584,2.8749738]
[1646006212861,23.1882,85.668,85.584,2.8749738]
[1646006213058,23.1882,85.668,85.585,35.06065151]
[1646006213258,23.1882,85.668,85.586,2.8646514]
[1646006213460,23.1882,85.668,85.587,50.11785317]
[1646006213760,23.1882,85.668,85.588,2.30665534]
[1646006213959,23.1882,85.668,85.589,10.671]
[1646006214161,23.1882,85.668,85.589,42.20376456]
[1646006214359,23.1882,85.668,85.59,2.3708386]
[1646006214560,23.1882,85.668,85.591,10.671]
[1646006215365,23.1882,85.668,85.591,6.0]
[1646006215564,23.1882,85.668,85.593,2.62332115]
[1646006215765,14.05,85.73,85.596,2.53876354]
[1646006215964,30.4923,85.703,85.601,117.2]
[1646006216165,30.4923,85.703,85.603,2.4952252]
[1646006216364,30.4923,85.703,85.604,10.67]
[1646006216565,16.07205572,85.702,85.606,2.79535304]
[1646006216766,16.07205572,85.702,85.607,6.0]
[1646006216966,6.0,85.701,85.608,2.37288339]
[1646006217166,6.0,85.701,85.609,6.0]
[1646006217367,6.0,85.701,85.609,8.60139849]
[1646006217566,6.0,85.701,85.609,23.85926673]
[1646006217767,6.0,85.701,85.61,2.47002632]
[1646006217969,6.0,85.701,85.611,6.0]
[1646006218166,6.0,85.701,85.61,2.47002632]
[1646006218566,117.2,85.7,85.611,6.0]
[1646006218768,117.2,85.698,85.61,2.47002632]
[1646006218969,6.0,85.697,85.61,2.47002632]
[1646006219571,6.0,85.701,85.61,2.47002632]
[1646006219768,6.0,85.701,85.611,28.16940878]
[1646006219970,14.05,85.74,85.612,123.2]
[1646006220169,117.2,85.747,85.613,2.68213371]
[1646006220376,17.9211,85.748,85.613,2.68213371]
[1646006220377,30.9432,85.71,85.614,9.00818875]
[1646006220571,30.9432,85.71,85.614,39.92438674]
[1646006220769,30.9432,85.71,85.615,3.09366049]
[1646006221069,30.9432,85.71,85.616,8.38006178]
[1646006221269,24.9432,85.71,85.63,14.05]
[1646006221469,24.9432,85.71,85.632,2.69555102]
[1646006221670,24.9432,85.71,85.633,6.0]
[1646006221969,24.9432,85.71,85.633,50.81534218]
[1646006222169,12.33679955,85.709,85.634,55.74068324]
[1646006222369,12.33679955,85.709,85.635,8.32064855]
[1646006224874,11.33679955,85.709,85.635,8.32064855]
[1646006225677,11.33679955,85.709,85.635,2.32064855]
[1646006226275,6.0,85.708,85.635,2.32064855]
[1646006226897,6.0,85.707,85.636,6.0]
[1646006227075,6.0,85.708,85.636,6.0]
[1646006227976,11.33679955,85.709,85.635,2.32064855]
[1646006228178,24.9432,85.71,85.636,28.16940878]
[1646006228376,24.0181,85.746,85.638,3.01712194]
[1646006228576,29.859,85.745,85.651,117.2]
[1646006228776,29.859,85.745,85.653,2.42394559]
[1646006228777,23.859,85.745,85.653,2.42394559]
[1646006228975,23.859,85.745,85.654,6.0]
[1646006229176,14.50141036,85.744,85.655,50.48346822]
[1646006229376,14.50141036,85.744,85.656,9.08037706]
[1646006230178,6.0,85.743,85.656,9.08037706]
[1646006231177,6.0,85.743,85.656,3.08037706]
[1646006232682,117.2,85.742,85.656,3.08037706]
[1646006232881,117.2,85.74,85.656,3.08037706]
[1646006233080,117.2,85.738,85.656,3.08037706]
[1646006233283,6.0,85.737,85.656,3.08037706]
[1646006233582,117.2,85.736,85.656,3.08037706]
[1646006233782,117.2,85.734,85.656,3.08037706]
[1646006233982,5.5,85.733,85.656,3.08037706]
[1646006234408,117.2,85.732,85.656,3.08037706]
[1646006234581,117.2,85.729,85.656,3.08037706]
[1646006235383,117.2,85.727,85.612,2.60640186]
[1646006235582,32.01843056,85.728,85.613,30.7491]
[1646006235583,117.2,85.725,85.613,30.7491]
[1646006235785,117.2,85.725,85.614,2.78135342]
[1646006235786,117.2,85.709,85.614,2.78135342]
[1646006235984,14.12512755,85.706,85.614,2.78135342]
[1646006236184,117.2,85.704,85.614,2.78135342]
[1646006236384,6.0,85.703,85.614,2.78135342]
[1646006237386,6.0,85.705,85.614,2.78135342]
[1646006239184,117.2,85.704,85.614,2.78135342]
[1646006239385,117.2,85.702,85.614,2.78135342]
[1646006239585,117.2,85.7,85.614,2.78135342]
[1646006239785,6.0,85.703,85.614,2.78135342]
[1646006239786,117.2,85.698,85.614,2.78135342]
[1646006239986,6.0,85.697,85.614,2.78135342]
[1646006240188,117.2,85.696,85.614,2.78135342]
[1646006240389,117.2,85.694,85.614,2.78135342]
[1646006240587,117.2,85.692,85.614,2.78135342]
[1646006240789,117.2,85.69,85.614,2.78135342]
[1646006240991,117.2,85.688,85.614,2.78135342]
[1646006241188,6.0,85.687,85.614,2.78135342]
[1646006241391,1.44990265,85.686,85.614,2.78135342]
[1646006241589,6.0,85.685,85.614,2.78135342]
[1646006241790,117.2,85.684,85.614,2.78135342]
[1646006241989,6.0,85.683,85.614,2.78135342]
[1646006242189,117.2,85.682,85.614,2.78135342]
[1646006242390,117.2,85.68,85.614,2.78135342]
[1646006242590,117.2,85.678,85.614,2.78135342]
[1646006242792,6.0,85.677,85.606,2.95415398]
[1646006242989,22.5654,85.676,85.606,2.95415398]
[1646006243190,6.0,85.675,85.606,2.95415398]
[1646006247303,117.2,85.672,85.606,2.95415398]
[1646006247502,11.57994852,85.673,85.606,2.95415398]
[1646006247503,6.0,85.671,85.606,2.95415398]
[1646006247907,117.2,85.67,85.606,2.95415398]
[1646006248104,6.0,85.672,85.592,23.7926]
[1646006248105,117.2,85.668,85.592,23.7926]
[1646006248307,117.2,85.666,85.593,2.43509562]
[1646006248509,117.2,85.664,85.593,2.43509562]
[1646006248709,6.0,85.667,85.593,2.43509562]
[1646006248710,6.0,85.663,85.593,2.43509562]
[1646006248906,22.7434,85.666,85.593,2.43509562]
[1646006249106,6.0,85.665,85.584,2.96989465]
[1646006250115,117.2,85.664,85.584,2.96989465]
[1646006250415,117.2,85.662,85.584,2.96989465]
[1646006250614,117.2,85.66,85.573,2.35504235]
[1646006250813,6.0,85.661,85.573,2.35504235]
[1646006250814,6.0,85.659,85.573,2.35504235]
[1646006251014,22.7434,85.666,85.573,2.35504235]
[1646006251219,6.0,85.665,85.573,2.35504235]
[1646006251416,117.2,85.664,85.574,44.05560399]
[1646006251617,117.2,85.662,85.575,2.89974258]
[1646006251817,3.99508168,85.659,85.575,2.89974258]
[1646006252018,117.2,85.657,85.575,2.89974258]
[1646006252221,6.0,85.658,85.575,2.89974258]
[1646006252222,117.2,85.655,85.575,2.89974258]
[1646006252418,29.5368,85.654,85.575,2.89974258]
[1646006252819,29.5368,85.654,85.576,2.74678921]
[1646006253221,29.5368,85.654,85.578,2.64922161]
[1646006253620,29.5368,85.654,85.578,11.43922161]
[1646006255923,6.0,85.654,85.579,117.2]
[1646006256121,22.6665,85.675,85.579,117.2]
[1646006256122,6.0,85.674,85.581,117.2]
[1646006256325,24.6727,85.674,85.583,2.92392784]
[1646006256523,6.0,85.673,85.584,10.671]
[1646006256823,6.0,85.673,85.584,27.51916007]
[1646006257024,14.85086773,85.672,85.586,2.32090458]
[1646006257223,6.0,85.671,85.587,10.671]
[1646006259726,14.85086773,85.672,85.588,117.2]
[1646006259927,14.85086773,85.672,85.592,117.2]
[1646006260127,14.85086773,85.672,85.593,13.36315065]
[1646006260527,14.85086773,85.672,85.593,16.10993986]
[1646006260727,14.85086773,85.672,85.594,2.74678921]
[1646006260928,14.85086773,85.672,85.595,10.671]
[1646006261128,14.85086773,85.672,85.596,2.2981131]
[1646006261330,14.85086773,85.672,85.597,10.671]
[1646006269951,24.9216,85.671,85.597,10.671]
[1646006271354,24.9216,85.671,85.598,2.74678921]
[1646006271655,24.9216,85.671,85.599,6.0]
[1646006271853,24.9216,85.671,85.598,5.05838886]
[1646006272254,6.0,85.67,85.598,5.05838886]
[1646006272454,6.0,85.67,85.599,6.0]
[1646006273058,6.0,85.67,85.598,5.05838886]
[1646006273059,6.0,85.67,85.598,2.31159965]
[1646006273456,6.0,85.67,85.598,5.05838886]
[1646006274258,6.0,85.67,85.599,6.0]
[1646006274455,6.0,85.67,85.598,2.31159965]
[1646006274855,6.0,85.67,85.599,6.0]
[1646006275258,6.0,85.67,85.598,2.31159965]
[1646006275677,24.9216,85.671,85.598,2.31159965]
[1646006276376,6.0,85.67,85.599,6.0]
[1646006276580,6.0,85.67,85.598,2.31159965]
[1646006276977,6.0,85.67,85.599,6.0]
[1646006277176,6.0,85.67,85.598,2.31159965]
[1646006278580,6.0,85.67,85.599,6.0]
[1646006278981,24.9216,85.671,85.599,6.0]
[1646006279179,24.9216,85.671,85.6,117.2]
[1646006279482,17.4987,85.71,85.603,3.04398594]
[1646006279679,29.6181,85.708,85.605,117.2]
[1646006279880,29.6181,85.708,85.611,117.2]
[1646006280079,15.06928697,85.707,85.615,117.2]
[1646006280281,15.06928697,85.707,85.618,3.10453752]
[1646006280578,6.0,85.706,85.619,6.0]
[1646006280979,6.0,85.706,85.62,23.8015]
[1646006281181,6.0,85.706,85.621,8.69326342]
[1646006282581,6.0,85.706,85.621,2.69326342]
[1646006283383,117.2,85.705,85.621,2.69326342]
[1646006283583,117.2,85.703,85.621,2.69326342]
[1646006283785,117.2,85.701,85.621,2.69326342]
[1646006283983,117.2,85.699,85.621,2.69326342]
[1646006284182,6.0,85.7,85.621,2.69326342]
[1646006284183,124.98630857,85.698,85.621,2.69326342]
[1646006284383,117.2,85.694,85.599,3.09471662]
[1646006284583,1.49859132,85.693,85.599,3.09471662]
[1646006284785,117.70574323,85.691,85.599,3.09471662]
[1646006284984,117.2,85.689,85.599,3.09471662]
[1646006285186,117.2,85.687,85.599,3.09471662]
[1646006285383,117.2,85.685,85.599,3.09471662]
[1646006285584,117.2,85.683,85.599,3.09471662]
[1646006285783,117.2,85.681,85.599,3.09471662]
[1646006285983,117.2,85.679,85.599,3.09471662]
[1646006286184,11.63278811,85.677,85.599,3.09471662]
[1646006286384,6.0,85.676,85.599,3.09471662]
[1646006286684,117.2,85.675,85.599,3.09471662]
[1646006286884,117.2,85.673,85.599,3.09471662]
[1646006287084,117.2,85.671,85.599,3.09471662]
[1646006287287,117.2,85.669,85.599,3.09471662]
[1646006287484,146.4988,85.668,85.599,3.09471662]
[1646006288485,146.4988,85.668,85.592,2.64623651]
[1646006294190,1.57225328,85.667,85.592,2.64623651]
[1646006294389,117.2,85.665,85.583,2.84264901]
[1646006294589,7.47296059,85.664,85.583,2.84264901]
[1646006294789,14.05,85.65,85.583,2.84264901]
[1646006294992,6.0,85.649,85.583,2.84264901]
[1646006295190,27.16854209,85.648,85.584,48.33193636]
[1646006295391,6.0,85.647,85.585,2.68451019]
[1646006296596,7.8573265,85.647,85.584,48.33193636]
[1646006297395,6.0,85.647,85.584,48.33193636]
[1646006297599,1.41802082,85.706,85.585,4.672]
[1646006297893,3.8,85.738,85.585,4.672]
[1646006297894,1.82062852,85.739,85.592,2.94367218]
[1646006298094,1.49931074,85.737,85.595,2.80204848]
[1646006298294,17.8738,85.756,85.598,3.03998264]
[1646006298498,1.67833688,85.754,85.621,117.2]
[1646006298695,1.67833688,85.754,85.631,117.2]
[1646006298895,1.54571391,85.752,85.634,2.66462881]
[1646006299195,1.54571391,85.752,85.637,2.5906315]
[1646006299394,7.30056349,85.751,85.651,117.2]
[1646006299594,7.30056349,85.751,85.653,2.96305624]
[1646006299800,2.7771101,85.75,85.654,10.667]
[1646006299997,1.35728283,85.748,85.655,47.7334063]
[1646006300201,1.35728283,85.748,85.656,4.667]
[1646006300396,6.0,85.747,85.657,6.0]
[1646006300597,6.0,85.747,85.658,4.667]
[1646006300800,6.0,85.747,85.659,6.0]
[1646006301101,6.0,85.747,85.66,4.667]
[1646006301298,6.0,85.747,85.661,6.0]
[1646006301497,6.0,85.747,85.662,4.667]
[1646006301697,6.0,85.747,85.663,6.0]
[1646006301900,6.0,85.748,85.663,28.5619]
[1646006302097,6.0,85.748,85.664,4.667]
[1646006302298,6.0,85.748,85.665,6.0]
[1646006302498,6.0,85.748,85.663,28.5619]
[1646006303299,26.49102453,85.747,85.663,22.5619]
[1646006303499,125.05263842,85.746,85.663,22.5619]
[1646006303698,1.86793286,85.745,85.663,22.5619]
[1646006303899,117.2,85.743,85.663,22.5619]
[1646006304098,1.43734065,85.74,85.663,22.5619]
[1646006304298,117.2,85.738,85.663,22.5619]
[1646006304499,2.89490475,85.736,85.663,22.5619]
[1646006304699,6.0,85.735,85.663,22.5619]
[1646006308003,6.0,85.735,85.655,47.7334063]
[1646006308202,117.2,85.729,85.629,4.667]
[1646006308402,117.2,85.727,85.629,4.667]
[1646006308607,117.2,85.725,85.629,4.667]
[1646006308801,117.2,85.719,85.629,4.667]
[1646006309002,1.64422562,85.716,85.629,4.667]
[1646006309204,1.48157388,85.714,85.63,57.70820651]
[1646006309426,117.2,85.712,85.63,57.70820651]
[1646006309605,117.2,85.71,85.63,57.70820651]
[1646006309807,117.2,85.708,85.63,57.70820651]
[1646006310007,7.74206958,85.707,85.63,57.70820651]
[1646006310207,6.0,85.707,85.63,57.70820651]
[1646006310710,1.68642344,85.713,85.63,57.70820651]
[1646006310910,6.0,85.712,85.63,57.70820651]
[1646006312911,6.0,85.713,85.631,28.5595]
[1646006313218,22.5579,85.714,85.632,119.68325299]
[1646006313410,22.5579,85.714,85.633,125.94534705]
[1646006313811,12.68012545,85.716,85.634,2.25903145]
[1646006314012,12.68012545,85.716,85.636,117.2]
[1646006314212,12.68012545,85.716,85.638,117.2]
[1646006314512,23.8875,85.725,85.639,6.0]
[1646006314912,23.8875,85.725,85.641,2.58091612]
[1646006315112,23.8875,85.725,85.644,2.76044189]
[1646006315313,11.38969349,85.724,85.645,29.4154]
[1646006315513,11.38969349,85.724,85.646,2.54990795]
[1646006315716,11.38969349,85.724,85.647,6.0]
[1646006317134,24.2806,85.739,85.648,117.2]
[1646006317334,24.2806,85.739,85.651,117.2]
[1646006317535,24.2806,85.739,85.653,117.2]
[1646006317735,24.2806,85.739,85.655,117.2]
[1646006317934,24.2806,85.739,85.657,117.2]
[1646006318135,24.2806,85.739,85.659,117.2]
[1646006318337,24.2806,85.739,85.661,117.2]
[1646006318535,24.2806,85.739,85.663,117.2]
[1646006318736,24.2806,85.739,85.664,6.0]
[1646006318935,24.2806,85.739,85.665,23.6545]
[1646006319138,24.2806,85.739,85.666,6.0]
[1646006324341,1.60260483,85.768,85.666,8.66058022]
[1646006324540,7.76253752,85.767,85.667,2.74678921]
[1646006324739,7.76253752,85.767,85.67,3.00372664]
[1646006324939,7.76253752,85.767,85.672,117.2]
[1646006325141,7.76253752,85.767,85.673,123.2]
[1646006325341,15.17869178,85.766,85.673,177.21707876]
[1646006325540,6.0,85.765,85.674,6.0]
[1646006325741,6.0,85.765,85.675,23.5252]
[1646006325940,6.0,85.765,85.676,6.0]
[1646006326744,26.49102453,85.764,85.676,6.0]
[1646006326943,6.0,85.763,85.676,8.54686355]
[1646006327344,6.0,85.765,85.676,8.54686355]
[1646006327743,6.0,85.765,85.677,117.2]
[1646006327944,2.74678921,85.764,85.678,6.0]
[1646006328143,6.0,85.763,85.675,23.5252]
[1646006328548,2.74678921,85.762,85.675,23.5252]
[1646006328747,6.0,85.761,85.675,23.5252]
[1646006329147,2.74678921,85.76,85.675,23.5252]
[1646006329346,6.0,85.759,85.676,6.0]
[1646006329646,6.0,85.759,85.675,23.5252]
[1646006329845,2.74678921,85.758,85.675,23.5252]
[1646006330047,1.46728522,85.756,85.675,23.5252]
[1646006330248,6.0,85.755,85.675,23.5252]
[1646006330447,6.0,85.755,67.859,0.5]
[1646006330448,1.64651326,85.753,85.64,14.05]
[1646006330647,117.2,85.754,85.637,2.48461325]
[1646006330648,119.02024986,85.749,85.641,24.9422]
[1646006330847,1.44842209,85.746,85.641,24.9422]
[1646006331046,1.52699107,85.743,85.641,24.9422]
[1646006331250,1.80176761,85.738,85.653,60.72781705]
[1646006331447,1.8448019,85.735,85.653,60.72781705]
[1646006331746,117.2,85.729,85.653,60.72781705]
[1646006331946,7.56835018,85.728,85.653,60.72781705]
[1646006332348,2.74678921,85.727,85.653,60.72781705]
[1646006332547,15.17869178,85.725,85.654,24.3956]
[1646006332747,7.7382289,85.724,85.654,24.3956]
[1646006332947,10.48501811,85.724,85.654,24.3956]
[1646006333348,2.74678921,85.723,85.635,24.4454]
[1646006333547,6.0,85.722,85.636,50.17855651]
[1646006333948,2.74678921,85.721,85.636,50.17855651]
[1646006334148,6.0,85.72,85.636,50.17855651]
[1646006334549,2.74678921,85.719,85.636,50.17855651]
[1646006334747,6.0,85.718,85.636,50.17855651]
[1646006335147,2.74678921,85.717,85.636,50.17855651]
[1646006335349,1.47600307,85.715,85.636,50.17855651]
[1646006335547,6.0,85.714,85.636,50.17855651]
[1646006335747,8.74678921,85.714,85.636,50.17855651]
[1646006335948,6.0,85.714,85.636,50.17855651]
[1646006336147,2.74678921,85.713,85.635,48.841]
[1646006336350,6.0,85.712,85.635,48.841]
[1646006336747,2.74678921,85.711,85.635,48.841]
[1646006336948,6.0,85.71,85.635,48.841]
[1646006337148,0.39633842,85.709,85.635,48.841]
[1646006337348,3.14312763,85.709,85.635,48.841]
[1646006337549,6.0,85.708,85.635,48.841]
[1646006337952,119.94678921,85.707,85.635,48.841]
[1646006338152,7.83542596,85.706,85.635,48.841]
[1646006338351,10.58221517,85.706,85.629,4.667]
[1646006338553,10.58221517,85.706,85.584,2.5668423]
[1646006338753,27.03798921,85.705,85.596,49.0458]
[1646006338956,7.58742562,85.704,85.597,45.4977975]
[1646006339153,14.05,85.7,85.597,45.4977975]
[1646006339352,124.81566853,85.699,85.597,45.4977975]
[1646006339553,1.6966038,85.698,85.597,45.4977975]
[1646006339755,6.0,85.697,85.597,45.4977975]
[1646006339953,12.56294494,85.696,85.597,45.4977975]
[1646006340154,7.56772625,85.695,85.597,45.4977975]
[1646006340554,10.31451546,85.695,85.597,45.4977975]
[1646006340755,119.94678921,85.694,85.597,45.4977975]
[1646006340954,1.40777348,85.691,85.597,45.4977975]
[1646006341155,1.52765738,85.688,85.597,45.4977975]
[1646006341356,117.2,85.686,85.597,45.4977975]
[1646006341557,7.76251472,85.685,85.597,45.4977975]
[1646006341755,117.2,85.684,85.597,45.4977975]
[1646006341955,117.2,85.679,85.597,45.4977975]
[1646006342157,117.2,85.677,85.597,45.4977975]
[1646006342354,117.2,85.675,85.597,45.4977975]
[1646006342554,22.5975,85.676,85.597,45.4977975]
[1646006343180,22.5975,85.676,85.598,6.0]
[1646006343762,6.0,85.675,85.598,6.0]
[1646006345359,6.0,85.675,85.597,45.4977975]
[1646006345559,6.0,85.675,85.599,117.2]
[1646006345760,3.01208526,85.683,85.601,117.2]
[1646006345959,20.17478921,85.705,85.603,117.2]
[1646006346163,6.0,85.704,85.604,123.2]
[1646006346460,6.0,85.704,85.606,117.2]
[1646006346664,2.74678921,85.715,85.61,14.05]
[1646006346862,2.74678921,85.715,85.611,146.4986]
[1646006347059,2.74678921,85.732,85.613,117.2]
[1646006347260,2.74678921,85.732,85.615,117.2]
[1646006347459,6.0,85.731,85.617,117.2]
[1646006347661,6.0,85.731,85.631,117.2]
[1646006347859,6.0,85.731,85.633,117.2]
[1646006348060,14.31956139,85.73,85.634,169.89128871]
[1646006348259,6.0,85.729,85.634,163.89128871]
[1646006348462,6.0,85.729,85.635,6.0]
[1646006348860,2.74678921,85.728,85.635,6.0]
[1646006349061,6.0,85.727,85.636,117.2]
[1646006349365,6.0,85.727,85.637,6.0]
[1646006349762,119.94678921,85.726,85.635,6.0]
[1646006350060,6.0,85.725,85.635,6.0]
[1646006350264,14.05,85.72,85.635,6.0]
[1646006350461,6.0,85.719,85.635,6.0]
[1646006350680,146.89021897,85.719,85.634,46.69128871]
[1646006350861,2.74678921,85.718,85.634,46.69128871]
[1646006351061,1.25546881,85.716,85.634,46.69128871]
[1646006351362,6.0,85.715,85.632,48.4767]
[1646006351566,117.2,85.713,85.601,46.0514]
[1646006351764,117.2,85.699,85.601,46.0514]
[1646006351966,117.2,85.697,85.562,90.9103]
[1646006352164,9.8,85.698,85.562,90.9103]
[1646006352165,117.2,85.693,85.562,73.1918]
[1646006352463,14.05,85.68,85.607,56.60220822]
[1646006352663,9.29162537,85.679,85.607,56.60220822]
[1646006352864,12.03841458,85.679,85.565,48.1275]
[1646006353267,2.74678921,85.678,85.565,48.1275]
[1646006353465,6.0,85.677,85.566,117.2]
[1646006353865,6.0,85.677,85.61,55.70468437]
[1646006354966,2.74678921,85.676,85.574,4.67]
[1646006355172,6.0,85.675,85.574,4.67]
[1646006355375,117.2,85.674,85.573,4.67]
[1646006355573,117.2,85.674,85.572,22.6865]
[1646006355574,117.2,85.672,85.572,22.6865]
[1646006355773,117.2,85.67,85.572,22.6865]
[1646006355974,6.0,85.669,85.609,60.37583866]
[1646006356173,6.0,85.669,85.573,4.67]
[1646006356374,2.74678921,85.668,85.573,4.67]
[1646006356575,6.0,85.667,85.573,4.67]
[1646006356775,6.0,85.667,85.552,4.67]
[1646006356975,119.94678921,85.666,85.531,23.835]
[1646006357175,6.0,85.665,85.575,45.73458055]
[1646006357376,35.00381374,85.665,85.553,17.82]
[1646006357574,3.8,85.658,85.533,47.98]
[1646006357775,6.0,85.657,85.533,47.98]
[1646006357975,14.05,85.65,85.533,47.98]
[1646006358187,123.2,85.649,85.534,6.0]
[1646006358386,3.29162537,85.648,85.535,47.64291231]
[1646006358588,117.2,85.646,85.535,47.64291231]
[1646006358788,117.2,85.644,85.535,47.64291231]
[1646006358987,117.2,85.639,85.535,47.64291231]
[1646006359187,117.2,85.637,85.535,47.64291231]
[1646006359387,117.2,85.633,85.535,47.64291231]
[1646006359588,117.2,85.631,85.515,4.673]
[1646006359790,14.05,85.62,85.517,2.74678921]
[1646006359991,117.2,85.619,85.517,2.74678921]
[1646006360188,3.8,85.618,85.501,48.7392]
[1646006360390,123.2,85.617,85.502,6.0]
[1646006360589,117.2,85.613,85.503,51.88359435]
[1646006360790,14.05,85.61,85.503,51.88359435]
[1646006360989,6.0,85.609,85.504,10.675]
[1646006361190,6.0,85.609,85.504,74.92129005]
[1646006361390,6.0,85.615,85.505,141.30470077]
[1646006361688,6.0,85.615,85.506,28.88459506]
[1646006361889,6.0,85.615,85.506,77.66807926]
[1646006362089,6.0,85.615,85.507,70.13041259]
[1646006362292,6.0,85.615,85.508,10.675]
[1646006362490,6.0,85.615,85.509,117.2]
[1646006362690,6.0,85.615,85.51,10.674]
[1646006362891,6.0,85.615,85.51,30.20092839]
[1646006363092,6.0,85.615,85.51,82.12174592]
[1646006363291,3.58007146,85.616,85.511,71.44774592]
[1646006363491,3.58007146,85.616,85.513,117.2]
[1646006363691,3.58007146,85.616,85.517,117.2]
[1646006363892,3.58007146,85.616,85.519,117.2]
[1646006364090,24.4545,85.645,85.521,117.2]
[1646006364293,58.38,85.689,85.523,117.2]
[1646006364490,58.38,85.689,85.525,117.2]
[1646006364491,6.0,85.668,85.525,117.2]
[1646006364690,6.0,85.668,85.54,14.05]
[1646006364893,24.4545,85.667,85.541,174.8015]
[1646006365089,117.2,85.665,85.541,174.8015]
[1646006365293,6.0,85.664,85.543,117.2]
[1646006365490,13.77061326,85.666,85.545,117.2]
[1646006365694,13.77061326,85.666,85.547,117.2]
[1646006365895,13.77061326,85.666,85.549,117.2]
[1646006366095,13.77061326,85.666,85.551,117.2]
[1646006366295,13.77061326,85.666,85.553,117.2]
[1646006366495,13.77061326,85.666,85.554,123.2]
[1646006366696,6.0,85.665,85.555,69.13386881]
[1646006366896,6.0,85.665,85.556,6.0]
[1646006367096,6.0,85.665,85.557,117.2]
[1646006367297,6.0,85.665,85.559,117.2]
[1646006367499,6.0,85.665,85.561,117.2]
[1646006367698,6.0,85.665,85.562,10.672]
[1646006367897,6.0,85.665,85.563,6.0]
[1646006368097,6.0,85.665,85.564,4.672]
[1646006368399,6.0,85.665,85.565,6.0]
[1646006368598,6.0,85.665,85.566,27.3874]
[1646006368801,6.0,85.665,85.568,54.34761679]